fUSD/lending_fUSD_20250602
["ID","MTS","AMOUNT","RATE_DAILY","PERIOD"]
[363759591,1748863836045,-420.0,0.00019315,2]
[363759593,1748863836054,-5096.47,0.00019315,2]
[363759595,1748863836064,-378.83749589,0.00019315,2]
[363759597,1748863836074,-1864.33,0.00019315,2]
[363759599,1748863836083,-420.0,0.00019315,2]
[363759601,1748863836094,-420.0,0.00019315,2]
[363759603,1748863836103,-420.0,0.00019315,2]
[363759605,1748863836113,-420.0,0.00019315,2]
[363759607,1748863836123,-420.0,0.00019315,2]
[363759609,1748863836133,-1006.31,0.00019315,2]
[363759611,1748863836143,-420.0,0.00019315,2]
[363759613,1748863836152,-729.3,0.00019315,2]
[363759615,1748863836162,-550.84,0.00019315,2]
[363759617,1748863836171,-420.0,0.00019315,2]
[363759619,1748863836181,-420.0,0.00019315,2]
[363759621,1748863836190,-1267.46,0.00019315,2]
[363759623,1748863836200,-420.0,0.00019315,2]
[363759625,1748863836210,-434.02,0.00019315,2]
[363759627,1748863836219,-420.0,0.00019315,2]
[363759629,1748863836228,-994.31,0.00019315,2]
[363759631,1748863836239,-1022.06,0.00019315,2]
[363759633,1748863836249,-420.0,0.00019315,2]
[363759635,1748863836258,-420.0,0.00019315,2]
[363759637,1748863836267,-705.39,0.00019315,2]
[363759639,1748863836275,-420.0,0.00019315,2]
[363759641,1748863836284,-420.0,0.00019315,2]
[363759643,1748863836293,-420.0,0.00019315,2]
[363759645,1748863836301,-420.0,0.00019315,2]
[363759647,1748863836310,-838.68,0.00019315,2]
[363759649,1748863836320,-420.0,0.00019315,2]
[363759651,1748863836329,-1214.36,0.00019315,2]
[363759653,1748863836338,-580.06,0.00019315,2]
[363759655,1748863836347,-420.0,0.00019315,2]
[363759657,1748863836356,-420.0,0.00019315,2]
[363759659,1748863836366,-540.5,0.00019315,2]
[363759661,1748863836375,-8967.04,0.00019315,2]
[363759663,1748863836384,-420.0,0.00019315,2]
[363759665,1748863836392,-420.0,0.00019315,2]
[363759667,1748863836400,-420.0,0.00019315,2]
[363759669,1748863836411,-4087.99,0.00019315,2]
[363759671,1748863836418,-420.0,0.00019315,2]
[363759673,1748863836426,-561.81,0.00019315,2]
[363759675,1748863836434,-420.0,0.00019315,2]
[363759677,1748863836443,-739.85,0.00019315,2]
[363759679,1748863836452,-420.0,0.00019315,2]
[363759682,1748863836461,-747.62,0.00019315,2]
[363759684,1748863836468,-420.0,0.00019315,2]
[363759686,1748863836476,-420.0,0.00019315,2]
[363759688,1748863836485,-420.0,0.00019315,2]
[363759690,1748863836494,-420.0,0.00019315,2]
[363759692,1748863836504,-420.0,0.00019315,2]
[363759694,1748863836513,-420.0,0.00019315,2]
[363759696,1748863836523,-976.1,0.00019315,2]
[363759698,1748863836532,-420.0,0.00019315,2]
[363759700,1748863836541,-420.0,0.00019315,2]
[363759702,1748863836551,-1238.52,0.00019315,2]
[363759704,1748863836560,-420.0,0.00019315,2]
[363759706,1748863836569,-634.42,0.00019315,2]
[363759708,1748863836578,-420.0,0.00019315,2]
[363759710,1748863836587,-420.0,0.00019315,2]
[363759712,1748863836598,-1789.33,0.00019315,2]
[363759713,1748863836607,-200.52,0.00019315,2]
[363759715,1748863836616,-994.08,0.00019315,2]
[363759717,1748863836627,-420.0,0.00019315,2]
[363759719,1748863836636,-420.0,0.00019315,2]
[363759721,1748863836645,-545.84,0.00019315,2]
[363759723,1748863836655,-248.34,0.00019315,2]
[363759725,1748863836664,-420.0,0.00019315,2]
[363759727,1748863836673,-420.0,0.00019315,2]
[363759730,1748863836685,-420.0,0.00019315,2]
[363759731,1748863836697,-420.0,0.00019315,2]
[363759734,1748863836706,-420.0,0.00019315,2]
[363759735,1748863836716,-1691.37,0.00019315,2]
[363759737,1748863836725,-150.0,0.00019333,4]
[363759739,1748863836735,-216.35870173,0.00019352,2]
[363759741,1748863836744,-203.0,0.00019354,2]
[363759743,1748863836753,-216.35870173,0.00019413,2]
[363759745,1748863836762,-150.0,0.00019429,4]
[363759748,1748863836772,-500.0,0.00019451,2]
[363759749,1748863836781,-500.0,0.00019451,2]
[363759751,1748863836790,-420.0,0.00019452,2]
[363759753,1748863836799,-499.58,0.00019452,2]
[363759755,1748863836809,-420.0,0.00019452,2]
[363759758,1748863836818,-420.0,0.00019452,2]
[363759760,1748863836829,-420.0,0.00019452,2]
[363759762,1748863836838,-420.0,0.00019452,2]
[363759764,1748863836847,-383.46,0.00019452,2]
[363759765,1748863836855,-420.0,0.00019452,2]
[363759767,1748863836865,-581.38,0.00019452,2]
[363759769,1748863836874,-650.4,0.00019452,2]
[363759771,1748863836883,-420.0,0.00019452,2]
[363759773,1748863836893,-420.0,0.00019452,2]
[363759775,1748863836902,-741.24,0.00019452,2]
[363759778,1748863836912,-2080.76,0.00019452,2]
[363759780,1748863836922,-478.2,0.00019452,2]
[363759782,1748863836932,-562.66,0.00019452,2]
[363759784,1748863836940,-420.0,0.00019452,2]
[363759786,1748863836949,-420.0,0.00019452,2]
[363759788,1748863836958,-420.0,0.00019452,2]
[363759790,1748863836966,-544.56,0.00019452,2]
[363759792,1748863836975,-511.72,0.00019452,2]
[363759794,1748863836983,-479.93034726,0.00019452,2]
[363759796,1748863836992,-420.0,0.00019452,2]
[363759798,1748863837001,-420.0,0.00019452,2]
[363759800,1748863837009,-696.91,0.00019452,2]
[363759802,1748863837019,-420.0,0.00019452,2]
[363759804,1748863837028,-420.0,0.00019452,2]
[363759806,1748863837037,-441.68,0.00019452,2]
[363759808,1748863837046,-420.0,0.00019452,2]
[363759810,1748863837054,-1139.9,0.00019452,2]
[363759812,1748863837063,-446.71,0.00019452,2]
[363759814,1748863837073,-420.0,0.00019452,2]
[363759815,1748863837082,-1033.38,0.00019452,2]
[363759817,1748863837092,-685.68,0.00019452,2]
[363759820,1748863837102,-420.0,0.00019452,2]
[363759822,1748863837111,-420.0,0.00019452,2]
[363759824,1748863837121,-420.0,0.00019452,2]
[363759825,1748863837131,-420.0,0.00019452,2]
[363759827,1748863837140,-420.0,0.00019452,2]
[363759829,1748863837149,-1563.08,0.00019452,2]
[363759831,1748863837159,-420.0,0.00019452,2]
[363759833,1748863837169,-420.0,0.00019452,2]
[363759835,1748863837178,-407.18,0.00019452,2]
[363759837,1748863837187,-697.7,0.00019452,2]
[363759839,1748863837197,-420.0,0.00019452,2]
[363759841,1748863837206,-420.0,0.00019452,2]
[363759843,1748863837216,-444.51,0.00019452,2]
[363759845,1748863837225,-420.0,0.00019452,2]
[363759847,1748863837234,-920.28,0.00019452,2]
[363759849,1748863837247,-420.0,0.00019452,2]
[363759851,1748863837256,-420.0,0.00019452,2]
[363759853,1748863837265,-420.0,0.00019452,2]
[363759855,1748863837276,-420.0,0.00019452,2]
[363759857,1748863837287,-420.0,0.00019452,2]
[363759859,1748863837296,-492.2,0.00019452,2]
[363759861,1748863837306,-1441.74,0.00019452,2]
[363759863,1748863837315,-508.73,0.00019452,2]
[363759865,1748863837325,-184.08,0.00019452,2]
[363759867,1748863837335,-420.0,0.00019452,2]
[363759868,1748863837344,-420.0,0.00019452,2]
[363759869,1748863837353,-5096.47,0.00019452,2]
[363759870,1748863837362,-1864.33,0.00019452,2]
[363759871,1748863837371,-420.0,0.00019452,2]
[363759872,1748863837381,-420.0,0.00019452,2]
[363759873,1748863837390,-420.0,0.00019452,2]
[363759874,1748863837399,-420.0,0.00019452,2]
[363759875,1748863837408,-420.0,0.00019452,2]
[363759876,1748863837417,-1006.31,0.00019452,2]
[363759877,1748863837426,-729.3,0.00019452,2]
[363759878,1748863837435,-420.0,0.00019452,2]
[363759879,1748863837445,-420.0,0.00019452,2]
[363759880,1748863837454,-1267.46,0.00019452,2]
[363759881,1748863837463,-420.0,0.00019452,2]
[363759882,1748863837473,-434.02,0.00019452,2]
[363759883,1748863837482,-420.0,0.00019452,2]
[363759884,1748863837492,-994.31,0.00019452,2]
[363759885,1748863837501,-1022.06,0.00019452,2]
[363759886,1748863837511,-420.0,0.00019452,2]
[363759887,1748863837521,-420.0,0.00019452,2]
[363759888,1748863837530,-705.39,0.00019452,2]
[363759889,1748863837539,-420.0,0.00019452,2]
[363759890,1748863837548,-420.0,0.00019452,2]
[363759891,1748863837559,-420.0,0.00019452,2]
[363759892,1748863837571,-420.0,0.00019452,2]
[363759893,1748863837580,-838.68,0.00019452,2]
[363759894,1748863837590,-420.0,0.00019452,2]
[363759895,1748863837599,-1214.36,0.00019452,2]
[363759896,1748863837609,-580.06,0.00019452,2]
[363759897,1748863837619,-420.0,0.00019452,2]
[363759898,1748863837628,-420.0,0.00019452,2]
[363759899,1748863837637,-540.5,0.00019452,2]
[363759900,1748863837647,-420.0,0.00019452,2]
[363759901,1748863837656,-8967.04,0.00019452,2]
[363759902,1748863837665,-363.34,0.00019452,2]
[363759903,1748863837675,-346.52,0.00019452,2]
[363759904,1748863837684,-4087.99,0.00019452,2]
[363759905,1748863837694,-420.0,0.00019452,2]
[363759906,1748863837705,-561.81,0.00019452,2]
[363759907,1748863837714,-420.0,0.00019452,2]
[363759908,1748863837723,-739.85,0.00019452,2]
[363759909,1748863837732,-420.0,0.00019452,2]
[363759910,1748863837742,-747.62,0.00019452,2]
[363759911,1748863837751,-429.46,0.00019452,2]
[363759912,1748863837760,-420.0,0.00019452,2]
[363759913,1748863837770,-420.0,0.00019452,2]
[363759914,1748863837779,-420.0,0.00019452,2]
[363759915,1748863837788,-420.0,0.00019452,2]
[363759916,1748863837798,-976.1,0.00019452,2]
[363759917,1748863837807,-420.0,0.00019452,2]
[363759918,1748863837816,-420.0,0.00019452,2]
[363759919,1748863837826,-1238.52,0.00019452,2]
[363759920,1748863837836,-420.0,0.00019452,2]
[363759921,1748863837845,-420.0,0.00019452,2]
[363759922,1748863837855,-634.42,0.00019452,2]
[363759923,1748863837863,-420.0,0.00019452,2]
[363759924,1748863837873,-1789.33,0.00019452,2]
[363759925,1748863837882,-994.08,0.00019452,2]
[363759926,1748863837891,-201.77377601,0.00019452,2]
[363759927,1748863837900,-420.0,0.00019452,2]
[363759928,1748863837912,-420.0,0.00019452,2]
[363759929,1748863837922,-420.0,0.00019452,2]
[363759930,1748863837931,-420.0,0.00019452,2]
[363759931,1748863837941,-420.0,0.00019452,2]
[363759932,1748863837950,-420.0,0.00019452,2]
[363759933,1748863837960,-1691.37,0.00019452,2]
[363759934,1748863837970,-216.35870173,0.00019474,2]
[363759935,1748863837981,-150.0,0.000195,4]
[363759936,1748863837990,-150.0,0.000195,4]
[363759937,1748863838000,-216.35870173,0.00019535,2]
[363759938,1748863838009,-420.0,0.00019589,2]
[363759939,1748863838019,-420.0,0.00019589,2]
[363759940,1748863838029,-420.0,0.00019589,2]
[363759941,1748863838038,-420.0,0.00019589,2]
[363759942,1748863838047,-536.1,0.00019589,2]
[363759943,1748863838056,-179.54,0.00019589,2]
[363759944,1748863838066,-581.38,0.00019589,2]
[363759945,1748863838076,-650.4,0.00019589,2]
[363759946,1748863838085,-420.0,0.00019589,2]
[363759947,1748863838095,-420.0,0.00019589,2]
[363759948,1748863838104,-741.24,0.00019589,2]
[363759949,1748863838114,-2080.76,0.00019589,2]
[363759950,1748863838123,-478.2,0.00019589,2]
[363759951,1748863838133,-420.0,0.00019589,2]
[363759952,1748863838142,-420.0,0.00019589,2]
[363759953,1748863838153,-420.0,0.00019589,2]
[363759954,1748863838162,-544.56,0.00019589,2]
[363759955,1748863838171,-420.0,0.00019589,2]
[363759956,1748863838182,-466.32,0.00019589,2]
[363759957,1748863838193,-696.91,0.00019589,2]
[363759958,1748863838203,-420.0,0.00019589,2]
[363759959,1748863838214,-441.68,0.00019589,2]
[363759960,1748863838223,-420.0,0.00019589,2]
[363759961,1748863838232,-1139.9,0.00019589,2]
[363759963,1748863838246,-446.71,0.00019589,2]
[363759965,1748863838255,-420.0,0.00019589,2]
[363759967,1748863838264,-1033.38,0.00019589,2]
[363759969,1748863838273,-685.68,0.00019589,2]
[363759971,1748863838283,-420.0,0.00019589,2]
[363759973,1748863838292,-420.0,0.00019589,2]
[363759975,1748863838302,-420.0,0.00019589,2]
[363759977,1748863838312,-463.40446699,0.00019589,2]
[363759979,1748863838323,-420.0,0.00019589,2]
[363759981,1748863838332,-1563.08,0.00019589,2]
[363759983,1748863838340,-284.82,0.00019589,2]
[363759985,1748863838350,-420.0,0.00019589,2]
[363759987,1748863838359,-697.7,0.00019589,2]
[363759989,1748863838368,-420.0,0.00019589,2]
[363759990,1748863838377,-420.0,0.00019589,2]
[363759991,1748863838387,-444.51,0.00019589,2]
[363759992,1748863838396,-420.0,0.00019589,2]
[363759994,1748863838406,-920.28,0.00019589,2]
[363759996,1748863838416,-293.22,0.00019589,2]
[363759998,1748863838425,-420.0,0.00019589,2]
[363760000,1748863838434,-420.0,0.00019589,2]
[363760002,1748863838443,-420.0,0.00019589,2]
[363760004,1748863838453,-420.0,0.00019589,2]
[363760006,1748863838462,-1441.74,0.00019589,2]
[363760008,1748863838472,-508.73,0.00019589,2]
[363760010,1748863838481,-513.32,0.00019589,2]
[363760012,1748863838491,-420.0,0.00019589,2]
[363760014,1748863838500,-5096.47,0.00019589,2]
[363760016,1748863838509,-1864.33,0.00019589,2]
[363760018,1748863838519,-420.0,0.00019589,2]
[363760020,1748863838528,-420.0,0.00019589,2]
[363760022,1748863838538,-468.78,0.00019589,2]
[363760024,1748863838547,-420.0,0.00019589,2]
[363760027,1748863838556,-420.0,0.00019589,2]
[363760029,1748863838565,-1006.31,0.00019589,2]
[363760031,1748863838575,-729.3,0.00019589,2]
[363760033,1748863838584,-420.0,0.00019589,2]
[363760035,1748863838593,-420.0,0.00019589,2]
[363760037,1748863838603,-1267.46,0.00019589,2]
[363760039,1748863838612,-420.0,0.00019589,2]
[363760041,1748863838621,-434.02,0.00019589,2]
[363760043,1748863838630,-420.0,0.00019589,2]
[363760045,1748863838639,-994.31,0.00019589,2]
[363760047,1748863838649,-1022.06,0.00019589,2]
[363760049,1748863838658,-420.0,0.00019589,2]
[363760051,1748863838667,-420.0,0.00019589,2]
[363760053,1748863838676,-705.39,0.00019589,2]
[363760055,1748863838686,-420.0,0.00019589,2]
[363760057,1748863838695,-420.0,0.00019589,2]
[363760059,1748863838704,-420.0,0.00019589,2]
[363760061,1748863838714,-151.64,0.00019589,2]
[363760063,1748863838723,-838.68,0.00019589,2]
[363760065,1748863838733,-543.68,0.00019589,2]
[363760067,1748863838742,-1214.36,0.00019589,2]
[363760069,1748863838751,-580.06,0.00019589,2]
[363760071,1748863838760,-420.0,0.00019589,2]
[363760073,1748863838769,-420.0,0.00019589,2]
[363760075,1748863838779,-540.5,0.00019589,2]
[363760077,1748863838787,-420.0,0.00019589,2]
[363760079,1748863838796,-8967.04,0.00019589,2]
[363760081,1748863838806,-4087.99,0.00019589,2]
[363760083,1748863838815,-420.0,0.00019589,2]
[363760085,1748863838826,-561.81,0.00019589,2]
[363760087,1748863838835,-420.0,0.00019589,2]
[363760089,1748863838844,-739.85,0.00019589,2]
[363760091,1748863838853,-493.65183999,0.00019589,2]
[363760093,1748863838863,-747.62,0.00019589,2]
[363760095,1748863838872,-420.0,0.00019589,2]
[363760097,1748863838881,-420.0,0.00019589,2]
[363760099,1748863838890,-420.0,0.00019589,2]
[363760101,1748863838900,-420.0,0.00019589,2]
[363760103,1748863838910,-976.1,0.00019589,2]
[363760105,1748863838919,-420.0,0.00019589,2]
[363760107,1748863838928,-420.0,0.00019589,2]
[363760109,1748863838938,-1238.52,0.00019589,2]
[363760110,1748863838947,-420.0,0.00019589,2]
[363760112,1748863838957,-420.0,0.00019589,2]
[363760114,1748863838967,-634.42,0.00019589,2]
[363760116,1748863838977,-420.0,0.00019589,2]
[363760135,1748863839159,-1789.33,0.00019589,2]
[363760138,1748863839170,-994.08,0.00019589,2]
[363760140,1748863839180,-420.0,0.00019589,2]
[363760142,1748863839190,-420.0,0.00019589,2]
[363760144,1748863839199,-420.0,0.00019589,2]
[363760146,1748863839209,-420.0,0.00019589,2]
[363760148,1748863839219,-420.0,0.00019589,2]
[363760149,1748863839228,-420.0,0.00019589,2]
[363760152,1748863839239,-1691.37,0.00019589,2]
[363760154,1748863839252,-216.35870173,0.00019596,2]
[363760156,1748863839262,-1294.750624,0.00019599,2]
[363760158,1748863839272,-216.35870173,0.00019656,2]
[363760160,1748863839283,-170.123,0.000197,2]
[363760161,1748863839292,-3209.815,0.000197,2]
[363760163,1748863839303,-1105.75,0.000197,2]
[363760165,1748863839313,-150.0,0.00019714,4]
[363760168,1748863839327,-216.35870173,0.00019717,2]
[363760169,1748863839337,-500.0,0.00019725,2]
[363760171,1748863839347,-420.0,0.00019726,2]
[363760173,1748863839356,-420.0,0.00019726,2]
[363760175,1748863839366,-510.72,0.00019726,2]
[363760177,1748863839375,-420.0,0.00019726,2]
[363760179,1748863839385,-581.38,0.00019726,2]
[363760182,1748863839395,-650.4,0.00019726,2]
[363760184,1748863839406,-279.18,0.00019726,2]
[363760186,1748863839415,-420.0,0.00019726,2]
[363760188,1748863839425,-741.24,0.00019726,2]
[363760190,1748863839435,-478.2,0.00019726,2]
[363760192,1748863839446,-2080.76,0.00019726,2]
[363760194,1748863839456,-420.0,0.00019726,2]
[363760196,1748863839466,-469.98,0.00019726,2]
[363760198,1748863839475,-420.0,0.00019726,2]
[363760200,1748863839485,-544.56,0.00019726,2]
[363760202,1748863839495,-420.0,0.00019726,2]
[363760204,1748863839505,-696.91,0.00019726,2]
[363760206,1748863839515,-459.2,0.00019726,2]
[363760208,1748863839524,-441.68,0.00019726,2]
[363760210,1748863839533,-420.0,0.00019726,2]
[363760212,1748863839543,-1139.9,0.00019726,2]
[363760214,1748863839552,-446.71,0.00019726,2]
[363760215,1748863839561,-420.0,0.00019726,2]
[363760217,1748863839571,-1033.38,0.00019726,2]
[363760220,1748863839585,-685.68,0.00019726,2]
[363760222,1748863839595,-420.0,0.00019726,2]
[363760223,1748863839604,-420.0,0.00019726,2]
[363760226,1748863839615,-420.0,0.00019726,2]
[363760228,1748863839624,-420.0,0.00019726,2]
[363760230,1748863839634,-1563.08,0.00019726,2]
[363760231,1748863839643,-420.0,0.00019726,2]
[363760233,1748863839653,-697.7,0.00019726,2]
[363760235,1748863839662,-420.0,0.00019726,2]
[363760237,1748863839671,-420.0,0.00019726,2]
[363760239,1748863839681,-444.51,0.00019726,2]
[363760242,1748863839690,-420.0,0.00019726,2]
[363760244,1748863839700,-920.28,0.00019726,2]
[363760246,1748863839710,-420.0,0.00019726,2]
[363760249,1748863839719,-420.0,0.00019726,2]
[363760250,1748863839729,-420.0,0.00019726,2]
[363760252,1748863839738,-1441.74,0.00019726,2]
[363760254,1748863839747,-508.73,0.00019726,2]
[363760256,1748863839756,-420.0,0.00019726,2]
[363760258,1748863839765,-5096.47,0.00019726,2]
[363760261,1748863839775,-1864.33,0.00019726,2]
[363760263,1748863839785,-420.0,0.00019726,2]
[363760265,1748863839793,-420.0,0.00019726,2]
[363760267,1748863839803,-420.0,0.00019726,2]
[363760269,1748863839812,-420.0,0.00019726,2]
[363760271,1748863839824,-1006.31,0.00019726,2]
[363760273,1748863839833,-729.3,0.00019726,2]
[363760275,1748863839843,-420.0,0.00019726,2]
[363760277,1748863839852,-420.0,0.00019726,2]
[363760279,1748863839862,-1267.46,0.00019726,2]
[363760281,1748863839871,-420.0,0.00019726,2]
[363760283,1748863839880,-434.02,0.00019726,2]
[363760285,1748863839890,-420.0,0.00019726,2]
[363760287,1748863839899,-994.31,0.00019726,2]
[363760289,1748863839909,-1022.06,0.00019726,2]
[363760291,1748863839920,-420.0,0.00019726,2]
[363760293,1748863839931,-420.0,0.00019726,2]
[363760295,1748863839942,-705.39,0.00019726,2]
[363760297,1748863839952,-420.0,0.00019726,2]
[363760299,1748863839962,-420.0,0.00019726,2]
[363760302,1748863839971,-420.0,0.00019726,2]
[363760303,1748863839981,-838.68,0.00019726,2]
[363760306,1748863839991,-580.06,0.00019726,2]
[363760308,1748863840001,-1214.36,0.00019726,2]
[363760310,1748863840010,-420.0,0.00019726,2]
[363760312,1748863840020,-420.0,0.00019726,2]
[363760313,1748863840030,-540.5,0.00019726,2]
[363760316,1748863840039,-420.0,0.00019726,2]
[363760318,1748863840049,-8967.04,0.00019726,2]
[363760320,1748863840059,-4087.99,0.00019726,2]
[363760322,1748863840069,-420.0,0.00019726,2]
[363760324,1748863840079,-561.81,0.00019726,2]
[363760326,1748863840089,-420.0,0.00019726,2]
[363760327,1748863840098,-739.85,0.00019726,2]
[363760330,1748863840108,-747.62,0.00019726,2]
[363760332,1748863840118,-420.0,0.00019726,2]
[363760334,1748863840129,-566.4,0.00019726,2]
[363760336,1748863840139,-420.0,0.00019726,2]
[363760338,1748863840149,-477.5145026,0.00019726,2]
[363760340,1748863840159,-976.1,0.00019726,2]
[363760342,1748863840168,-420.0,0.00019726,2]
[363760344,1748863840178,-355.76306105,0.00019726,2]
[363760346,1748863840188,-1238.52,0.00019726,2]
[363760348,1748863840197,-420.0,0.00019726,2]
[363760350,1748863840207,-420.0,0.00019726,2]
[363760352,1748863840216,-634.42,0.00019726,2]
[363760354,1748863840226,-1789.33,0.00019726,2]
[363760356,1748863840235,-420.0,0.00019726,2]
[363760358,1748863840249,-994.08,0.00019726,2]
[363760360,1748863840258,-420.0,0.00019726,2]
[363760361,1748863840268,-420.0,0.00019726,2]
[363760364,1748863840278,-420.0,0.00019726,2]
[363760366,1748863840288,-289.48,0.00019726,2]
[363760367,1748863840299,-420.0,0.00019726,2]
[363760370,1748863840310,-420.0,0.00019726,2]
[363760372,1748863840320,-1691.37,0.00019726,2]
[363760374,1748863840333,-199.90925641,0.00019726,2]
[363760376,1748863840343,-150.0,0.0001975,4]
[363760378,1748863840353,-216.35870173,0.00019778,2]
[363760380,1748863840363,-300.0,0.00019805,2]
[363760382,1748863840372,-216.35870173,0.00019839,2]
[363760384,1748863840381,-200.0,0.0001984,2]
[363760386,1748863840391,-420.0,0.00019863,2]
[363760388,1748863840400,-420.0,0.00019863,2]
[363760390,1748863840409,-420.0,0.00019863,2]
[363760392,1748863840419,-581.38,0.00019863,2]
[363760394,1748863840429,-650.4,0.00019863,2]
[363760396,1748863840438,-420.0,0.00019863,2]
[363760398,1748863840448,-741.24,0.00019863,2]
[363760400,1748863840458,-478.2,0.00019863,2]
[363760402,1748863840468,-2080.76,0.00019863,2]
[363760404,1748863840478,-420.0,0.00019863,2]
[363760406,1748863840487,-420.0,0.00019863,2]
[363760408,1748863840497,-544.56,0.00019863,2]
[363760410,1748863840509,-420.0,0.00019863,2]
[363760412,1748863840518,-696.91,0.00019863,2]
[363760414,1748863840528,-441.68,0.00019863,2]
[363760416,1748863840538,-420.0,0.00019863,2]
[363760418,1748863840549,-1139.9,0.00019863,2]
[363760420,1748863840565,-446.71,0.00019863,2]
[363760423,1748863840578,-420.0,0.00019863,2]
[363760425,1748863840587,-1033.38,0.00019863,2]
[363760426,1748863840598,-685.68,0.00019863,2]
[363760428,1748863840607,-420.0,0.00019863,2]
[363760429,1748863840617,-420.0,0.00019863,2]
[363760430,1748863840627,-420.0,0.00019863,2]
[363760431,1748863840637,-1563.08,0.00019863,2]
[363760432,1748863840647,-420.0,0.00019863,2]
[363760433,1748863840657,-420.0,0.00019863,2]
[363760434,1748863840667,-697.7,0.00019863,2]
[363760435,1748863840677,-420.0,0.00019863,2]
[363760436,1748863840686,-420.0,0.00019863,2]
[363760437,1748863840696,-444.51,0.00019863,2]
[363760438,1748863840707,-482.0,0.00019863,2]
[363760439,1748863840723,-920.28,0.00019863,2]
[363760440,1748863840733,-420.0,0.00019863,2]
[363760441,1748863840742,-420.0,0.00019863,2]
[363760442,1748863840752,-420.0,0.00019863,2]
[363760444,1748863840763,-1441.74,0.00019863,2]
[363760446,1748863840772,-508.73,0.00019863,2]
[363760448,1748863840781,-420.0,0.00019863,2]
[363760450,1748863840791,-5096.47,0.00019863,2]
[363760452,1748863840801,-1864.33,0.00019863,2]
[363760454,1748863840810,-452.7,0.00019863,2]
[363760456,1748863840820,-420.0,0.00019863,2]
[363760458,1748863840831,-420.0,0.00019863,2]
[363760460,1748863840841,-420.0,0.00019863,2]
[363760462,1748863840851,-1006.31,0.00019863,2]
[363760464,1748863840860,-729.3,0.00019863,2]
[363760466,1748863840871,-420.0,0.00019863,2]
[363760468,1748863840880,-420.0,0.00019863,2]
[363760470,1748863840890,-1267.46,0.00019863,2]
[363760472,1748863840899,-420.0,0.00019863,2]
[363760474,1748863840909,-434.02,0.00019863,2]
[363760476,1748863840919,-420.0,0.00019863,2]
[363760478,1748863840929,-994.31,0.00019863,2]
[363760480,1748863840939,-1022.06,0.00019863,2]
[363760482,1748863840949,-366.44,0.00019863,2]
[363760484,1748863840958,-420.0,0.00019863,2]
[363760486,1748863840968,-705.39,0.00019863,2]
[363760488,1748863840978,-420.0,0.00019863,2]
[363760490,1748863840987,-166.78,0.00019863,2]
[363760492,1748863840997,-420.0,0.00019863,2]
[363760494,1748863841007,-838.68,0.00019863,2]
[363760496,1748863841017,-580.06,0.00019863,2]
[363760498,1748863841026,-1214.36,0.00019863,2]